[Event "1000GM 0004 IM Norm 2022"]
[Site "Saint Louis"]
[Date "2022.09.21"]
[Round "1.5"]
[White "Krishnan, Varun"]
[Black "Cervantes Landeiro, Thalia"]
[Result "1-0"]
[ECO "B90"]
[WhiteElo "2306"]
[BlackElo "2280"]
[Annotator "TA"]
[PlyCount "163"]
[EventDate "2022.09.21"]
[EventType "tourn"]
[EventCountry "USA"]
[SourceTitle "playchess.com"]
[Source "ChessBase"]
[SourceQuality "1"]
[TimeControl "5400+30"]

{[%evp 13,163,0,6,6,6,10,17,10,7,7,7,5,11,7,7,5,5,2,5,0,5,10,12,12,10,-4,0,-4,0,0,25,11,11,19,50,51,51,47,50,54,55,44,44,44,63,44,63,63,63,44,44,44,44,0,0,0,39,0,44,44,44,44,44,0,0,0,44,0,56,44,60,44,44,44,44,44,59,44,83,44,44,44,44,44,44,44,45,37,44,44,44,44,44,44,55,44,49,51,92,100,114,54,54,55,85,76,66,54,55,55,102,81,120,120,146,146,187,187,358,334,631,648,650,581,892,850,916,880,824,732,1427,1529,6079,5543,4747,2827,29965,29963,29955,29949,12821,29947,6238,5643,5498,5389,29974,29973,29975,29975,29958,6798]} 1. e4 {[%emt 0:00:41]} c5 {[%emt 0:00:06]} 2. Nf3 {[%emt 0:00:13]} d6 {[%emt 0:00:07]} 3. d4 {[%emt 0:00:05]} cxd4 {[%emt 0:00:06]} 4. Nxd4 {[%emt 0:00:03]} Nf6 {[%emt 0:00:08]} 5. Nc3 {[%emt 0:00:04]} a6 {[%emt 0:00:07]} 6. Rg1 {[%emt 0:00:22]} e5 {[%emt 0:04:17]} 7. Nb3 {[%emt 0:00:07]} Be6 {[%emt 0:02:45]} 8. g4 {[%emt 0:00:40] B90: Sicilian Najdorf: Unusual White 6th moves, 6 Be3 Ng4 and 6 Be3 e5.} d5 {[%emt 0:05:28]} 9. exd5 {[%emt 0:00:46]} Nxd5 {[%emt 0:00:25]} 10. Nxd5 {[%emt 0:00:08] The position is equal.} Qxd5 {[%emt 0:05:01]} 11. Qxd5 {[%emt 0:00:08]} Bxd5 {[%emt 0:00:06]} 12. Be3 {[%emt 0:02:14]} Nc6 {[%emt 0:04:50]} 13. O-O-O {[%emt 0:03:51]} O-O-O {[%emt 0:08:12]} 14. Bb6 {[%emt 0:06:57]} Rd6 {[%emt 0:02:43]} 15. g5 {[%emt 0:03:32]} Be6 {[%emt 0:05:18]} 16. Bg2 {[%emt 0:11:24]} Rxd1+ {[%emt 0:02:07]} 17. Rxd1 {[%emt 0:00:23]} Be7 {[%emt 0:01:21]} 18. h4 {[%emt 0:07:37]} h6 {[%emt 0:06:01] [#]} 19. Be3 $146 {[%emt 0:03:57]} ({Predecessor:} 19. Nc5 hxg5 20. Nxe6 fxe6 21. hxg5 Bxg5+ 22. Kb1 Rh2 23. Be4 Nb8 24. Rg1 Bh6 25. Rg3 {½-½ (41) Simmelink,J (2297)-Bernal Varela,N (2172) Chessfriend.com 2005}) 19... hxg5 {[%emt 0:01:54]} 20. hxg5 {[%emt 0:00:24]} Bg4 {[%emt 0:13:02]} 21. Rg1 {[%emt 0:08:32] And now Bxc6 would win.} Be6 {[%emt 0:09:08]} 22. Nc5 {[%emt 0:04:18]} Bxc5 {[%emt 0:05:03]} ({Much less strong is} 22... Bxa2 23. b3 $16) 23. Bxc5 {[%emt 0:00:19]} Nd4 {[%emt 0:01:03]} 24. Re1 {[%emt 0:03:22] Inhibits Ne2+.} Rh2 {[%emt 0:05:19]} 25. Rxe5 {[%emt 0:02:19]} Nb3+ {[%emt 0:02:01]} 26. axb3 {[%emt 0:01:18]} Rxg2 $14 {[%emt 0:00:09][%mdl 4096] Endgame KRB-KRB} 27. Bb6 {[%emt 0:04:21]} Kd7 {[%emt 0:02:13]} 28. Be3 {[%emt 0:04:00]} g6 {[%emt 0:02:11]} 29. Kd2 {[%emt 0:01:25]} Kd6 {[%emt 0:01:20]} 30. Ra5 {[%emt 0:01:13]} Rg4 {[%emt 0:02:11]} 31. Ra1 {[%emt 0:03:14]} Rh4 {[%emt 0:01:47]} 32. Re1 {[%emt 0:03:02]} Kc6 {[%emt 0:00:36]} 33. Ba7 {[%emt 0:02:22]} Rg4 {[%emt 0:01:57]} 34. Be3 {[%emt 0:00:44]} Rh4 {[%emt 0:00:06]} 35. Ra1 {[%emt 0:00:59]} Kd6 {[%emt 0:01:36]} 36. Kc3 {[%emt 0:01:36]} Kc6 {[%emt 0:00:47]} 37. Ra5 {[%emt 0:01:51]} Rg4 {[%emt 0:01:00]} 38. Bd4 {[%emt 0:01:42]} Bd5 {[%emt 0:01:15]} 39. Be3 {[%emt 0:00:33]} Be6 {[%emt 0:00:03]} 40. Kd2 {[%emt 0:01:56]} Kd6 {[%emt 0:00:40]} 41. c4 {[%emt 0:01:13]} Rg1 {[%emt 0:00:47]} 42. Bf4+ {[%emt 0:01:15]} Kc6 {[%emt 0:00:18]} 43. Kc3 {[%emt 0:00:42]} Rg4 {[%emt 0:02:04]} 44. Be3 {[%emt 0:01:28]} Kd6 {[%emt 0:00:41]} 45. Kb4 {[%emt 0:01:11]} Kc6 {[%emt 0:00:43]} 46. Ra1 {[%emt 0:00:49]} Rh4 {[%emt 0:00:04]} 47. Kc3 {[%emt 0:01:03]} Kc7 {[%emt 0:01:07]} 48. Kd3 {[%emt 0:00:51]} Bf5+ {[%emt 0:00:13]} 49. Kd2 {[%emt 0:00:13]} Kc6 {[%emt 0:00:22]} 50. Rc1 {[%emt 0:00:54]} Be6 {[%emt 0:00:12]} 51. Kc3 {[%emt 0:01:55]} Kc7 {[%emt 0:00:13]} 52. Rd1 {[%emt 0:01:07]} Kc6 {[%emt 0:00:39]} 53. Rd2 {[%emt 0:00:24]} Kc7 {[%emt 0:00:24]} 54. Bd4 {[%emt 0:00:54]} Rh3+ {[%emt 0:00:22]} 55. Kb4 {[%emt 0:00:49]} b6 {[%emt 0:01:25]} 56. Be5+ {[%emt 0:01:04]} Kb7 {[%emt 0:00:28]} 57. Bg3 {[%emt 0:00:38]} (57. Rd6 $16) 57... Rh5 {[%emt 0:00:40]} 58. Bf4 $1 {[%emt 0:00:32]} Rh3 {[%emt 0:00:36]} 59. Be3 {[%emt 0:00:34]} Kc7 {[%emt 0:00:24]} 60. Kc3 {[%emt 0:00:31]} Rh4 {[%emt 0:00:54]} 61. Rd1 {[%emt 0:00:20]} Rh3 {[%emt 0:00:28] White leaves nothing to chance now.} (61... Re4 $14 {deserves consideration.}) 62. Kd4 {[%emt 0:00:31]} Rh4+ {[%emt 0:00:55]} 63. Ke5 $1 {[%emt 0:00:31]} b5 {[%emt 0:00:38] [#]} 64. Bf4 $1 {[%emt 0:00:42]} Rh3 {[%emt 0:00:33]} 65. Bg3 {[%emt 0:01:07]} Rh8 $2 {[%emt 0:01:32]} (65... bxc4 66. bxc4 Rh8) 66. Rd6 {[%emt 0:02:00]} Kb7 $2 {[%emt 0:00:26]} (66... Bf5 67. Rxa6 Kb7) 67. Rxe6 $18 {[%emt 0:02:48]} fxe6 {[%emt 0:00:02] [#] KR-KB} 68. Kf6 $1 {[%emt 0:00:24]} Kc6 {[%emt 0:01:23]} 69. Kxg6 {[%emt 0:00:34] Hoping for Kf7.} Kd7 {[%emt 0:01:05]} 70. Kf7 {[%emt 0:00:59] Black must now prevent g6.} Rh7+ {[%emt 0:00:49]} 71. Kf6 {[%emt 0:00:11] Strongly threatening g6.} Rh5 {[%emt 0:00:24]} 72. c5 {[%emt 0:01:16]} a5 {[%emt 0:00:26]} 73. c6+ {[%emt 0:01:14]} Kxc6 {[%emt 0:00:16]} 74. g6 {[%emt 0:00:38][%cal Bg5g6,Bg6g7][%mdl 32] White wants to mate with g7.} Rf5+ {[%emt 0:00:55]} 75. Kxe6 {[%emt 0:00:25]} Rg5 {[%emt 0:00:09]} 76. Kf6 {[%emt 0:00:24]} Rg4 {[%emt 0:00:28]} 77. Kf5 {[%emt 0:00:11]} Rd4 {[%emt 0:00:09]} 78. g7 {[%emt 0:00:41]} Rd8 {[%emt 0:00:03]} 79. Ke6 {[%emt 0:00:56]} a4 {[%emt 0:01:29]} 80. bxa4 {[%emt 0:00:49] White mates.} bxa4 {[%emt 0:00:03]} 81. Kf7 {[%emt 0:00:15]} Rd7+ {[%emt 0:00:23]} 82. Kg6 {[%emt 0:00:08] Weighted Error Value: White=0.08 (flawless) /Black=0.05 (flawless)} 1-0